bitfinex-derivatives/quotes_ETHF0:USTF0_20250212
["timestamp","ask_amount","ask_price","bid_price","bid_amount"]
[1739372201101,3.2078,2595.8,2595.4,3.52202015]
[1739372201297,3.2078,2595.8,2595.4,0.31422015]
[1739372201495,1.0968,2596.0,2595.1,3.2078]
[1739372201700,0.77046,2595.8,2595.4,3.97833]
[1739372201900,1.0918,2596.4,2595.4,3.97833]
[1739372201901,5.13343,2596.5,2595.4,3.2078]
[1739372202101,3.2078,2596.1,2595.5,4.90050253]
[1739372202301,0.77049,2595.7,2595.5,4.90050253]
[1739372202608,0.77049,2595.7,2594.9,1.92677]
[1739372202609,0.77052,2595.6,2595.2,0.77061]
[1739372202905,1.1726,2596.3,2595.5,4.89622719]
[1739372203108,1.94291,2596.3,2595.9,0.7704]
[1739372203307,0.77034,2596.2,2595.7,3.2078]
[1739372203609,3.2078,2596.1,2595.6,1.1321]
[1739372203809,1.1726,2596.3,2595.6,1.1321]
[1739372204007,0.77037,2596.1,2595.7,0.77045]
[1739372204405,1.1726,2596.3,2595.7,0.77045]
[1739372204706,0.77039,2596.0,2595.6,1.90258]
[1739372205001,3.2078,2596.1,2595.4,3.2078]
[1739372205207,0.77048,2595.7,2595.4,3.97835]
[1739372205405,3.2078,2595.8,2595.4,3.2078]
[1739372205612,0.77054,2595.5,2595.2,0.7706]
[1739372205907,0.77054,2595.5,2595.1,3.2078]
[1739372205908,3.2078,2595.5,2595.0,1.0954]
[1739372206112,0.77061,2595.3,2595.0,1.86605]
[1739372206299,0.77061,2595.3,2595.1,0.77064]
[1739372206500,3.2078,2595.5,2595.0,1.0954]
[1739372206701,3.2078,2595.5,2594.9,1.1269]
[1739372206910,3.2078,2595.5,2595.4,0.77056]
[1739372207105,4.3804,2596.3,2595.7,0.77044]
[1739372207306,4.3804,2596.3,2595.7,3.2078]
[1739372207505,0.77033,2596.2,2595.9,0.7704]
[1739372207707,0.77032,2596.2,2595.8,0.77042]
[1739372208007,0.77038,2596.1,2595.8,0.77043]
[1739372208505,0.77032,2596.2,2595.7,3.2078]
[1739372208808,3.2078,2596.3,2596.0,0.77038]
[1739372209008,3.2078,2596.7,2596.0,3.2078]
[1739372209206,3.2078,2596.7,2596.1,6.06665667]
[1739372209507,3.2078,2596.4,2596.1,0.00577946]
[1739372209704,0.77032,2596.2,2596.1,0.00577946]
[1739372210711,6.77032,2596.2,2596.1,0.00577946]
[1739372210904,7.94142,2596.2,2596.1,0.00577946]
[1739372211410,1.92603,2595.9,2595.1,1.1053]
[1739372211604,3.2078,2595.7,2595.1,1.1053]
[1739372211805,0.77057,2595.4,2595.2,0.77062]
[1739372212007,0.77059,2595.3,2595.1,1.87593]
[1739372212211,1.92603,2595.9,2595.1,1.1053]
[1739372212212,0.77062,2595.2,2595.1,1.1053]
[1739372212407,3.2078,2595.3,2594.5,1.1673]
[1739372212611,0.77069,2595.0,2594.9,0.00577946]
[1739372213010,3.97849,2595.0,2594.9,0.00577946]
[1739372214103,9.97849,2595.0,2594.9,0.00577946]
[1739372214414,3.97849,2595.0,2594.9,0.00577946]
[1739372219020,3.97849,2595.0,2594.9,9.46e-06]
[1739372219021,9.97849,2595.0,2594.9,9.46e-06]
[1739372219809,9.2078,2595.0,2594.6,9.46e-06]
[1739372220011,3.97857,2594.7,2594.6,9.46e-06]
[1739372220415,9.97857,2594.7,2594.6,9.46e-06]
[1739372220722,10.04551285,2594.7,2594.6,9.46e-06]
[1739372221216,0.77083,2594.5,2594.4,8.92e-06]
[1739372221619,6.77083,2594.5,2594.4,8.92e-06]
[1739372221919,0.77083,2594.5,2594.4,8.92e-06]
[1739372222511,3.2078,2594.7,2594.5,0.77082]
[1739372222711,2.2405,2595.1,2594.4,8.92e-06]
[1739372222712,0.77072,2594.9,2594.4,3.20780892]
[1739372222907,0.77075,2594.8,2594.6,0.77078]
[1739372223312,1.1554,2595.1,2594.7,0.77075]
[1739372223615,3.2078,2595.3,2594.6,0.77078]
[1739372223922,1.93218946,2595.4,2594.4,8.92e-06]
[1739372223923,0.77082,2594.5,2594.4,8.92e-06]
[1739372224519,0.77075,2594.8,2594.6,0.77079]
[1739372225118,0.77075,2594.8,2594.5,2.275]
[1739372225315,0.77075,2594.8,2594.5,3.0458]
[1739372225515,0.77077,2594.7,2594.5,2.275]
[1739372225717,3.2078,2595.0,2594.5,2.275]
[1739372225918,0.77078,2594.7,2594.5,3.04582]
[1739372226117,3.2078,2595.0,2594.6,5.67430067]
[1739372226314,0.77071,2594.9,2594.6,0.77079]
[1739372226521,0.77071,2594.9,2594.5,2.275]
[1739372226522,3.2078,2595.0,2594.8,0.77073]
[1739372226728,0.00577946,2595.4,2594.9,5.0059685]
[1739372226919,3.2078,2596.1,2595.3,5.0059685]
[1739372227225,3.2078,2596.4,2595.7,5.0059685]
[1739372227420,0.77028,2596.4,2595.9,0.7704]
[1739372227621,0.77029,2596.3,2595.8,3.2078]
[1739372227925,3.2078,2596.4,2595.8,3.2078]
[1739372228123,0.77033,2596.2,2595.8,3.21357946]
[1739372228328,0.00577946,2596.3,2595.9,0.77038]
[1739372228528,0.00577946,2596.3,2596.0,0.77036]
[1739372228824,0.00577946,2596.3,2595.9,5.00667017]
[1739372229132,0.77038,2596.0,2595.9,5.00667017]
[1739372229323,3.2078,2596.2,2595.8,0.00577946]
[1739372229519,3.2078,2595.9,2595.8,0.00577946]
[1739372229718,3.97821,2595.9,2595.8,0.00577946]
[1739372230520,9.97821,2595.9,2595.8,0.00577946]
[1739372230822,3.97821,2595.9,2595.8,0.00577946]
[1739372231628,3.2078,2595.9,2595.8,0.77621946]
[1739372231830,0.00577946,2596.3,2596.1,0.77032]
[1739372232131,0.00577946,2596.3,2596.1,0.77035]
[1739372232324,0.00577946,2596.3,2596.2,0.77032]
[1739372232524,0.00577946,2596.3,2596.0,3.2078]
[1739372232727,0.00577946,2596.3,2596.1,0.77034]
[1739372233031,0.00577946,2596.3,2596.2,0.77032]
[1739372233226,3.21357946,2596.3,2596.1,5.02922303]
[1739372233431,0.77607946,2596.3,2595.9,2.2591]
[1739372233930,0.00577946,2596.3,2595.9,2.2591]
[1739372234130,0.77034,2596.2,2595.9,2.2591]
[1739372234532,0.00577946,2596.3,2596.0,0.77037]
[1739372234727,0.77032,2596.2,2595.9,2.2591]
[1739372234933,3.21357946,2596.3,2595.9,2.2591]
[1739372235134,3.2078,2596.2,2595.9,2.2591]
[1739372235330,0.00577946,2596.3,2596.0,4.97941245]
[1739372235729,0.00577946,2596.3,2595.9,2.2591]
[1739372235934,0.00577946,2596.3,2596.0,3.2078]
[1739372236130,0.00577946,2596.3,2595.9,2.2591]
[1739372236131,0.77033,2596.2,2595.9,2.2591]
[1739372236330,0.00577946,2596.3,2595.9,2.2591]
[1739372236929,0.00577946,2596.3,2596.2,0.77032]
[1739372237440,0.77012,2596.9,2596.5,0.7702]
[1739372237937,0.77012,2596.9,2596.6,1.1813]
[1739372238134,3.97791,2597.0,2596.6,1.95149]
[1739372238335,3.2078,2597.0,2596.6,1.1813]
[1739372238536,0.77017,2596.7,2596.6,1.1813]
[1739372238736,3.2078,2597.0,2596.4,3.2078]
[1739372239035,0.77014,2596.9,2596.5,0.77022]
[1739372239233,3.2078,2597.0,2596.5,0.77022]
[1739372239433,0.77023,2596.5,2596.4,3.2078]
[1739372239636,3.2078,2596.5,2596.0,1.1197]
[1739372239839,0.77033,2596.2,2596.0,1.1197]
[1739372240129,3.2078,2596.5,2596.0,1.1197]
[1739372240332,0.77035,2596.1,2596.0,1.1197]
[1739372240934,3.2078,2596.2,2595.8,0.00577946]
[1739372241231,3.97821,2595.9,2595.8,0.00577946]
[1739372241629,9.97821,2595.9,2595.8,0.00577946]
[1739372241938,3.97821,2595.9,2595.8,0.00577946]
[1739372242735,3.2078,2595.9,2595.8,0.77621946]
[1739372243031,3.9781,2596.3,2596.1,0.77034]
[1739372243231,0.77034,2596.2,2596.0,0.77036]
[1739372243538,3.2078,2596.3,2595.9,2.2634]
[1739372244134,3.2078,2596.3,2596.0,0.77038]
[1739372244440,3.9781,2596.3,2596.0,0.77037]
[1739372244630,3.2078,2596.3,2596.1,0.77034]
[1739372244836,3.97811,2596.3,2595.9,3.22768807]
[1739372245031,3.2078,2596.3,2596.1,0.77035]
[1739372245535,3.9781,2596.3,2596.0,5.01113935]
[1739372245939,0.77035,2596.1,2595.9,2.45729807]
[1739372246535,0.77033,2596.2,2595.9,3.22769807]
[1739372246931,3.2078,2596.3,2595.9,2.45729807]
[1739372247132,0.77037,2596.1,2595.9,2.45729807]
[1739372247535,0.77033,2596.2,2595.9,3.22769807]
[1739372247736,0.77036,2596.1,2595.9,2.45729807]
[1739372247938,0.77038,2596.0,2595.9,2.2634]
[1739372248240,3.97818,2596.0,2595.9,2.2634]
[1739372249136,3.97818,2596.0,2595.9,1.1186]
[1739372249440,0.77041,2595.9,2595.8,0.00577946]
[1739372250346,6.77041,2595.9,2595.8,9.46e-06]
[1739372250639,6.0,2595.9,2594.7,1.1156]
[1739372250836,0.77062,2595.2,2595.0,1.90506]
[1739372251037,0.77057,2595.4,2595.2,0.77059]
[1739372251341,3.2078,2595.9,2595.0,1.1344]
[1739372251540,5.4379,2596.2,2595.0,1.1344]
[1739372251736,0.00577946,2595.7,2595.2,0.77636946]
[1739372251932,0.00577946,2595.7,2595.2,0.00577946]
[1739372252136,0.00577946,2595.7,2595.5,0.77052]
[1739372252337,0.00577946,2595.7,2595.6,0.7705]
[1739372252745,0.00577946,2595.7,2595.3,4.93433698]
[1739372253045,0.77625946,2595.7,2595.4,0.77054]
[1739372253240,3.2078,2595.5,2595.2,0.00577946]
[1739372253447,0.77051,2595.6,2595.3,0.77057]
[1739372253640,0.77053,2595.5,2595.2,0.77638946]
[1739372253949,0.00577946,2595.7,2595.2,0.00577946]
[1739372254154,0.77056,2595.4,2595.2,0.00577946]
[1739372254351,0.77626946,2595.7,2595.2,0.00577946]
[1739372254552,0.00577946,2595.7,2595.6,0.7705]
[1739372255050,0.00577946,2595.7,2595.5,1.8619]
[1739372255240,0.00577946,2595.7,2595.6,1.1152]
[1739372255437,0.00577946,2595.7,2595.6,6.83992068]
[1739372256255,0.00577946,2595.7,2595.6,6.06942068]
[1739372256448,0.00577946,2595.7,2595.6,1.1152]
[1739372256948,0.00577946,2595.7,2595.6,1.8857]
[1739372257158,0.00577946,2595.7,2595.6,6.88517628]
[1739372257554,0.77624946,2595.7,2595.6,1.1152]
[1739372257754,0.77625946,2595.7,2595.5,1.0914]
[1739372258144,0.00577946,2595.7,2595.5,1.2872733]
[1739372258342,0.77056,2595.5,2595.3,1.151]
[1739372258652,1.92602,2596.0,2595.6,5.06324359]
[1739372258653,3.2078,2596.0,2595.6,5.06324359]
[1739372258854,3.97819,2596.0,2595.6,5.83374359]
[1739372259049,0.77048,2595.7,2595.5,5.06324359]
[1739372259256,3.2078,2596.0,2595.3,1.151]
[1739372259857,0.7705,2595.6,2595.3,1.92158]
[1739372260044,0.00577054,2595.9,2595.3,1.151]
[1739372260252,0.00577054,2595.9,2595.2,4.48971434]
[1739372260253,3.2078,2595.6,2595.2,0.00577946]
[1739372260548,3.2078,2595.6,2595.2,0.77639946]
[1739372260750,3.2078,2595.6,2595.2,0.00577946]
[1739372260954,0.77059,2595.3,2595.2,0.00577946]
[1739372261350,0.77058,2595.4,2595.2,0.00577946]
[1739372261555,0.77059,2595.3,2595.2,0.00577946]
[1739372261749,0.77058,2595.4,2595.2,0.00577946]
[1739372261953,0.77059,2595.3,2595.2,0.00577946]
[1739372263458,3.97839,2595.3,2595.2,0.00577946]
[1739372264146,9.97839,2595.3,2595.2,0.00577946]
[1739372264756,3.97839,2595.3,2595.2,0.00577946]
[1739372265853,3.2078,2595.3,2594.6,7.69173488]
[1739372266052,3.9784,2595.3,2595.2,0.77062]
[1739372266253,3.2078,2595.3,2594.9,4.48393488]
[1739372266555,0.77063,2595.2,2595.1,0.77062]
[1739372266955,0.77065,2595.1,2595.0,0.77066]
[1739372267156,3.2078,2595.3,2594.9,5.55131434]
[1739372267354,3.97841,2595.3,2595.2,0.77062]
[1739372267548,3.2078,2595.3,2594.9,5.55131434]
[1739372267753,0.77063,2595.2,2595.1,0.77063]
[1739372267955,0.77051,2595.6,2595.5,0.77052]
[1739372268151,3.97828,2595.7,2595.6,0.7705]
[1739372268459,3.97828,2595.7,2595.3,4.48393488]
[1739372268460,3.2078,2596.2,2595.8,0.77044]
[1739372268655,0.7704,2596.0,2595.8,0.77044]
[1739372268958,0.77618054,2595.9,2595.8,0.77044]
[1739372269157,0.00577054,2595.9,2595.8,0.77044]
[1739372269359,0.00577054,2595.9,2595.5,2.195]
[1739372269557,3.21357054,2595.9,2595.5,2.195]
[1739372269761,0.77049,2595.7,2595.5,2.96552]
[1739372269959,0.77046,2595.8,2595.6,0.7705]
[1739372270260,3.21357054,2595.9,2595.5,2.195]
[1739372270455,0.77046,2595.8,2595.5,2.195]
[1739372270652,3.21357054,2595.9,2595.5,2.195]
[1739372270861,3.21357054,2595.9,2595.3,4.79065677]
[1739372270862,0.77054,2595.5,2595.3,5.25450488]
[1739372271059,3.21357054,2595.9,2595.3,4.48393488]
[1739372271250,0.7705,2595.6,2595.4,0.77054]
[1739372271454,0.7705,2595.6,2595.3,4.48393488]
[1739372271650,0.77056,2595.4,2595.3,4.48393488]
[1739372271857,0.77055,2595.5,2595.2,0.7706]
[1739372272058,0.77052,2595.6,2595.4,0.77055]
[1739372272556,3.21357054,2595.9,2595.1,5.5162]
[1739372272753,0.77061,2595.3,2595.1,5.09504]
[1739372272953,1.92633,2595.5,2594.9,0.77646946]
[1739372273163,4.16853,2595.5,2594.9,0.00577946]
[1739372273360,3.2078,2595.3,2595.2,0.77062]
[1739372273861,3.2078,2595.8,2595.2,14.1145524]
[1739372274061,0.77053,2595.5,2595.4,4.48393488]
[1739372274261,0.77056,2595.4,2595.3,1.1374]
[1739372274559,5.13393,2595.8,2595.3,1.1374]
[1739372274759,0.00577054,2595.9,2595.4,4.48393488]
[1739372275157,0.77046,2595.8,2595.5,0.77053]
[1739372275353,0.77046,2595.8,2595.6,3.97829]
[1739372275761,0.00577054,2595.9,2595.6,3.2078]
[1739372276162,0.77620054,2595.9,2595.6,3.2078]
[1739372276361,0.77620054,2595.9,2595.7,0.77046]
[1739372276664,0.77044,2595.8,2595.6,3.9783]
[1739372277065,0.77047,2595.7,2595.6,3.2078]
[1739372277362,0.77619054,2595.9,2595.6,3.97828]
[1739372277871,0.00577054,2595.9,2595.7,0.77046]
[1739372278169,0.00577054,2595.9,2595.8,0.77044]
[1739372279962,3.97804,2596.5,2596.3,0.77029]
[1739372280171,3.2078,2596.5,2596.0,4.48393488]
[1739372280359,1.0835,2596.6,2596.2,3.2078]
[1739372280559,3.2078,2597.1,2596.5,3.2078]
[1739372280763,1.1655,2597.2,2596.5,3.2078]
[1739372280956,0.77012,2596.9,2596.7,0.77016]
[1739372281161,0.77011,2597.0,2596.7,0.77016]
[1739372281364,0.77012,2596.9,2596.5,2.61109031]
[1739372281665,0.77585946,2597.1,2596.5,2.61109031]
[1739372281870,0.77585946,2597.1,2597.0,0.77008]
[1739372281871,0.00577946,2597.1,2597.0,0.77008]
[1739372282069,0.00577946,2597.1,2597.0,5.25401488]
[1739372284267,3.2078,2597.9,2597.0,5.25401488]
[1739372284268,3.2078,2598.3,2597.0,16.36784706]
[1739372284459,1.1683,2598.2,2597.9,0.76982]
[1739372284777,0.76969,2598.4,2597.9,0.76982]
[1739372284975,17.68935999,2598.4,2597.7,7.69173488]
[1739372285269,0.76973,2598.2,2598.1,3.2078]
[1739372285566,3.2078,2598.2,2597.4,4.48393488]
[1739372285768,17.68935999,2598.4,2597.6,3.9777]
[1739372285970,0.76979,2598.0,2597.6,3.9777]
[1739372286173,3.2078,2598.2,2597.5,0.00577946]
[1739372286576,0.7699,2597.7,2597.5,0.00577946]
[1739372286868,0.7699,2597.6,2597.5,0.00577946]
[1739372287063,4.3761,2597.6,2596.3,1.1015]
[1739372287268,3.2078,2597.3,2596.8,0.77013]
[1739372287471,4.3761,2597.6,2596.8,7.69173488]
[1739372287688,0.76986,2597.8,2597.1,7.69173488]
[1739372287974,4.3403,2598.1,2597.2,3.2078]
[1739372288174,0.76982,2597.9,2597.6,0.76988]
[1739372288371,0.00577946,2597.7,2597.6,0.76988]
[1739372289569,0.00577946,2597.7,2597.5,4.3523]
[1739372289873,0.00577946,2597.7,2597.5,3.2078]
[1739372290272,0.00577946,2597.7,2597.5,3.97772]
[1739372290576,0.00577946,2597.7,2597.5,3.2078]
[1739372290874,0.00577946,2597.7,2597.6,4.95802964]
[1739372291068,20.89715999,2598.4,2597.6,6.06092964]
[1739372291272,18.45904999,2598.4,2598.0,3.97757]
[1739372291475,0.7697,2598.3,2598.0,3.2078]
[1739372291670,17.68935999,2598.4,2598.0,3.2078]
[1739372291869,0.76974,2598.2,2598.0,3.2078]
[1739372292174,1.1054,2598.5,2598.0,3.2078]
[1739372292372,0.76969,2598.4,2598.1,0.76975]
[1739372292874,0.7697,2598.3,2598.0,3.97758]
[1739372293072,0.76976,2598.1,2598.0,3.2078]
[1739372293266,3.2078,2598.1,2597.2,0.00577946]
[1739372293468,5.58943488,2598.0,2597.2,0.00577946]
[1739372293775,0.76999,2597.3,2597.2,0.00577946]
[1739372294780,3.08596,2597.9,2597.2,0.00577946]
[1739372294971,0.77016,2596.8,2596.4,0.77024]
[1739372295276,3.2078,2597.1,2596.6,0.77019]
[1739372295473,0.77008,2597.0,2596.7,0.77017]
[1739372295680,0.77001,2597.3,2596.8,3.2078]
[1739372295873,3.97778,2597.4,2596.8,3.2078]
[1739372296067,0.00577946,2597.3,2596.8,8.18055348]
[1739372296372,0.77011,2596.9,2596.8,4.97275348]
[1739372296679,0.77011,2596.9,2596.8,0.00577946]
[1739372296980,0.77007,2597.1,2596.8,0.00577946]
[1739372297474,1.1435,2597.2,2596.8,0.00577946]
[1739372297667,0.77011,2596.9,2596.8,0.00577946]
[1739372297877,3.2078,2597.1,2596.8,0.00577946]
[1739372298080,0.77579946,2597.3,2596.8,0.77591946]
[1739372298275,3.21357946,2597.3,2596.8,0.00577946]
[1739372298476,0.7701,2597.0,2596.8,0.00577946]
[1739372298872,3.97791,2596.9,2596.8,0.00577946]
[1739372299176,5.12141,2596.9,2596.8,0.00577946]
[1739372299373,4.3513,2596.9,2596.2,0.3090592]
[1739372299582,3.2078,2596.7,2595.8,0.19428084]
[1739372299873,3.2078,2596.7,2595.8,0.96471084]
[1739372300075,1.92536,2596.8,2595.8,0.19428084]
[1739372300076,3.2078,2596.4,2595.8,0.19428084]
[1739372300269,3.2078,2596.4,2595.7,3.2078]
[1739372300472,3.2078,2596.8,2596.1,3.2078]
[1739372300671,3.2078,2596.8,2596.4,3.2078]
[1739372300672,0.77017,2596.8,2596.4,3.2078]
[1739372300868,0.77016,2596.8,2596.4,3.97806]
[1739372301073,1.1435,2596.9,2596.4,3.2078]
[1739372301478,0.7701,2597.0,2596.7,3.2078]
[1739372301980,3.97787,2597.1,2596.7,3.2078]
[1739372302182,4.3899,2597.4,2596.7,3.2078]
[1739372302578,0.77007,2597.1,2596.7,3.2078]
[1739372302776,4.3899,2597.4,2596.7,3.2078]
[1739372302777,0.77011,2596.9,2596.7,3.2078]
[1739372303084,0.77014,2596.8,2596.7,3.2078]
[1739372303575,0.77013,2596.9,2596.7,3.2078]
[1739372303972,0.77014,2596.8,2596.7,3.2078]
[1739372304977,3.2078,2597.1,2596.7,3.2078]
[1739372305184,0.77013,2596.9,2596.7,3.2078]
[1739372305375,3.2078,2597.1,2596.7,3.2078]
[1739372305376,0.77014,2596.8,2596.7,3.2078]
[1739372306285,3.2078,2597.1,2596.7,3.2078]
[1739372306485,0.77013,2596.9,2596.7,3.2078]
[1739372306788,0.77014,2596.8,2596.7,3.2078]
[1739372306979,3.2078,2597.1,2596.7,3.2078]
[1739372307180,0.00577946,2597.3,2597.1,0.77004]
[1739372307474,0.00577946,2597.3,2597.1,0.77005]
[1739372308286,0.00577946,2597.3,2597.0,3.97786]
[1739372308578,0.77002,2597.2,2596.9,0.7701]
[1739372308784,0.00577946,2597.3,2597.0,3.2078]
[1739372308985,0.77578946,2597.3,2597.0,3.97786]
[1739372309484,0.00577946,2597.3,2597.0,3.2078]
[1739372309882,0.00577946,2597.3,2597.1,0.77004]
[1739372310286,0.00577946,2597.3,2597.2,0.77002]
[1739372310888,0.00577946,2597.3,2597.2,5.25395488]
[1739372311989,0.76989,2597.7,2597.2,4.48393488]
[1739372312190,1.0974,2597.8,2597.4,3.2078]
[1739372312481,0.76988,2597.7,2597.4,3.2078]
[1739372312688,0.7699,2597.7,2597.4,3.2078]
[1739372312982,1.0974,2597.8,2597.4,3.2078]
[1739372313189,0.00577946,2597.8,2597.7,3.97767]
[1739372313392,0.00577946,2597.8,2597.5,1.121]
[1739372313888,0.00577946,2597.8,2597.7,3.2078]
[1739372314092,0.00577946,2597.8,2597.7,3.97767]
[1739372315083,0.77561946,2597.8,2597.7,3.2078]
[1739372315483,0.00577946,2597.8,2597.7,3.2078]
[1739372315793,0.00577946,2597.8,2597.7,3.97767]
[1739372316487,2.2213,2599.0,2598.4,0.76964]
[1739372316786,2.2213,2599.0,2598.3,3.97748]
[1739372316787,0.76962,2598.6,2598.3,3.97748]
[1739372316986,0.76962,2598.6,2598.3,3.2078]
[1739372317188,4.3038,2598.9,2598.3,3.2078]
[1739372317382,0.76948,2599.1,2598.6,3.2078]
[1739372317589,0.76945,2599.2,2598.8,0.76953]
[1739372318090,4.3532,2599.3,2598.7,6.24228611]
[1739372318288,2.95899,2599.8,2598.7,6.24228611]
[1739372318289,0.76939,2599.4,2599.0,0.76948]
[1739372318485,3.2078,2599.6,2598.9,12.60746064]
[1739372318486,0.76936,2599.5,2598.9,12.60746064]
[1739372318687,3.2078,2599.6,2598.9,8.12352576]
[1739372318886,3.2078,2599.2,2598.9,4.91572576]
[1739372319192,0.76949,2599.0,2598.9,4.91572576]
[1739372319393,3.2078,2599.2,2598.7,1.13977946]
[1739372319597,0.76955,2598.8,2598.7,0.00577946]
[1739372320683,0.76973,2598.2,2598.1,1.134]
[1739372321484,0.76973,2598.2,2597.7,8.83633488]
[1739372321485,1.9241,2598.5,2597.7,5.12225]
[1739372321681,5.60841434,2599.0,2598.2,0.7697]
[1739372321682,5.13732946,2599.0,2598.2,0.7697]
[1739372321886,5.13732946,2599.0,2598.1,7.69173488]
[1739372321887,3.2078,2598.8,2598.1,7.69173488]
[1739372322083,0.76952,2598.9,2598.1,7.69173488]
[1739372322295,3.2078,2598.7,2598.2,0.76972]
[1739372322491,3.2078,2598.7,2598.1,7.69173488]
[1739372322699,3.2078,2598.7,2598.0,1.1174]
[1739372322700,1.92403,2598.6,2598.0,1.1174]
[1739372322889,0.76971,2598.3,2598.1,0.76974]
[1739372323197,0.76971,2598.3,2598.0,1.1174]
[1739372323389,1.18847946,2599.0,2598.3,0.76969]
[1739372323592,0.76976,2598.1,2598.0,1.1174]
[1739372323995,5.13183,2598.6,2598.0,1.1174]
[1739372324301,4.3928,2598.9,2598.2,3.2078]
[1739372324493,0.7696,2598.7,2598.2,3.2078]
[1739372324690,0.76962,2598.6,2598.3,0.7697]
[1739372324890,3.2078,2598.9,2598.0,1.1174]
[1739372325393,0.76969,2598.4,2598.2,0.76972]
[1739372325590,5.13165,2598.9,2598.0,1.1174]
[1739372325789,0.76969,2598.4,2598.0,1.1174]
[1739372326097,3.2078,2598.9,2598.0,1.1174]
[1739372326293,3.2078,2598.5,2598.0,1.1174]
[1739372326991,0.76959,2598.7,2598.5,0.76962]
[1739372327297,0.76955,2598.8,2598.7,0.76955]
[1739372327495,0.76955,2598.8,2598.4,5.63743488]
[1739372327793,0.76958,2598.7,2598.6,0.76959]
[1739372328100,0.76957,2598.8,2598.4,1.1535]
[1739372328298,0.76957,2598.8,2598.6,0.76959]
[1739372328500,1.18847946,2599.0,2598.6,0.76959]
[1739372328698,1.18847946,2599.0,2598.4,1.1535]
[1739372328888,0.00577946,2599.0,2598.4,7.56159488]
[1739372329092,0.00577946,2599.0,2598.9,0.76952]
[1739372329293,0.00577946,2599.0,2598.8,0.76954]
[1739372329294,0.77527946,2599.0,2598.8,0.76954]
[1739372329701,0.00577946,2599.0,2598.7,1.1633]
[1739372330192,0.00577946,2599.0,2598.9,0.76952]
[1739372330398,0.00577946,2599.0,2598.9,3.97732]
[1739372333099,3.2078,2599.9,2598.9,14.86608679]
[1739372333301,0.76928,2599.8,2599.5,0.76933]
[1739372333698,0.76928,2599.7,2599.5,0.76933]
[1739372333900,3.09098,2600.1,2599.3,1.1472]
[1739372334199,3.09098,2600.1,2599.4,0.76934]
[1739372334394,3.2078,2599.9,2599.3,1.15297946]
[1739372334602,3.2078,2599.9,2599.4,0.76936]
[1739372334798,3.2078,2599.9,2599.5,0.76934]
[1739372334799,0.76929,2599.7,2599.5,0.76934]
[1739372334998,1.168,2600.1,2599.3,1.15297946]
[1739372335192,0.76925,2599.8,2599.6,0.76929]
[1739372335499,1.168,2600.1,2599.3,1.15297946]
[1739372335500,3.2078,2599.9,2599.3,1.15297946]
[1739372335810,0.76936,2599.5,2599.3,1.92236946]
[1739372336102,3.2078,2599.9,2599.3,1.15297946]
[1739372336399,0.76929,2599.7,2599.5,0.76932]
[1739372336801,3.2078,2599.9,2599.3,3.07644946]
[1739372337198,3.2078,2599.9,2599.3,1.15297946]
[1739372337397,3.2078,2599.9,2599.5,0.76933]
[1739372337803,0.76928,2599.7,2599.6,0.7693]
[1739372338102,1.168,2600.1,2599.7,0.76928]
[1739372338298,0.7692,2600.0,2599.8,0.76923]
[1739372338501,0.76922,2599.9,2599.5,3.2078]
[1739372338701,1.168,2600.1,2599.5,3.2078]
[1739372338902,1.168,2600.1,2599.6,3.2078]
[1739372339104,0.76921,2600.0,2599.6,3.2078]
[1739372339399,1.168,2600.1,2599.4,4.48393488]
[1739372339605,3.09093,2600.1,2599.6,0.76931]
[1739372340101,3.09093,2600.1,2599.4,4.48393488]
[1739372340302,1.168,2600.1,2599.8,0.76925]
[1739372340502,0.76928,2599.7,2599.3,1.15297946]
[1739372340708,1.92299,2600.0,2599.4,0.76936]
[1739372341007,1.168,2600.1,2599.5,3.2078]
[1739372341200,1.93716,2600.1,2600.0,0.76919]
[1739372341398,3.2078,2600.2,2599.6,11.49746925]
[1739372341604,3.2078,2600.2,2600.1,0.76916]
[1739372342202,3.2078,2600.5,2599.9,7.69173488]
[1739372342399,3.2078,2600.5,2600.0,2.2591]
[1739372342599,3.2078,2600.5,2600.0,1.0925]
[1739372342905,0.76908,2600.4,2600.2,0.76913]
[1739372343102,0.76912,2600.3,2600.1,0.76915]
[1739372343305,0.76913,2600.3,2600.1,0.76915]
[1739372343502,1.92247,2600.7,2600.0,1.0925]
[1739372343803,1.92255,2600.6,2600.0,1.0925]
[1739372344004,0.76899,2600.7,2600.1,0.76914]
[1739372344209,0.7691,2600.4,2600.1,0.76914]
[1739372344503,0.76911,2600.3,2600.1,0.76914]
[1739372344807,6.26463,2600.8,2600.0,1.0925]
[1739372345013,0.76912,2600.3,2600.1,0.76916]
[1739372345309,0.76907,2600.5,2600.3,0.7691]
[1739372345802,4.3422,2600.8,2599.7,1.1666]
[1739372346004,0.76914,2600.2,2600.0,0.76918]
[1739372346201,0.76914,2600.2,2599.7,1.1666]
[1739372346202,3.2078,2600.4,2599.7,1.1666]
[1739372346408,1.1344,2600.8,2600.3,0.76908]
[1739372346409,4.3422,2600.8,2600.3,0.76908]
[1739372346714,4.3422,2600.8,2600.3,3.2078]
[1739372346903,1.92247,2600.7,2600.0,3.2078]
[1739372347202,0.76911,2600.3,2600.1,0.76915]
[1739372347409,0.76909,2600.4,2600.2,0.76913]
[1739372347910,4.3422,2600.8,2600.2,0.76911]
[1739372348109,0.76908,2600.4,2600.2,0.76911]
[1739372348309,1.92247,2600.7,2600.0,4.3486]
[1739372348610,0.76915,2600.2,2600.0,5.11778]
[1739372349507,1.92255,2600.6,2599.7,5.14367]
[1739372349703,0.76916,2600.2,2599.9,0.7692]
[1739372349904,0.76917,2600.1,2599.9,0.7692]
[1739372350906,0.76917,2600.1,2599.7,4.3744]
[1739372350907,3.2078,2600.4,2599.8,0.76923]
[1739372351103,1.92278,2600.3,2599.7,1.1666]
[1739372351304,3.2078,2600.1,2599.5,1.1408]